[Event "Titled Tuesday Blitz August 08 Early 2023"]
[White "Droin, Augustin"]
[Black "Ashraf, Artin"]
[WhiteFideId "45105987"]
[BlackFideId "22514805"]
[WhiteElo "2542"]
[BlackElo "2807"]
[Result "0-1"]
[Round "6"]
[TimeControl "180+1"]
[Date "2023.08.08"]
[WhiteClock "0:01:59"]
[BlackClock "0:01:29"]
[Board "34"]

1. e4 {[%clk 0:03:00]}  c5 {[%clk 0:02:59]} 2. Nf3 {[%clk 0:03:01]}  d6 {[%clk 0:02:59]} 3. d4 {[%clk 0:03:01]}  cxd4 {[%clk 0:03:00]} 4. Nxd4 {[%clk 0:03:01]}  Nf6 {[%clk 0:03:01]} 5. Bb5+ {[%clk 0:03:01]}  Nbd7 {[%clk 0:02:57]} 6. O-O {[%clk 0:03:01]}  a6 {[%clk 0:02:54]} 7. Bd3 {[%clk 0:02:59]}  g6 {[%clk 0:02:38]} 8. c4 {[%clk 0:02:58]}  Bg7 {[%clk 0:02:37]} 9. Nc3 {[%clk 0:02:58]}  O-O {[%clk 0:02:37]} 10. f3 {[%clk 0:02:51]}  Qb6 {[%clk 0:01:50]} 11. Be3 {[%clk 0:02:50]}  Ng4 {[%clk 0:01:49]} 12. fxg4 {[%clk 0:02:28]}  Bxd4 {[%clk 0:01:49]} 13. Bxd4 {[%clk 0:02:29]}  Qxd4+ {[%clk 0:01:50]} 14. Kh1 {[%clk 0:02:30]}  Ne5 {[%clk 0:01:43]} 15. Be2 {[%clk 0:02:28]}  Qxd1 {[%clk 0:01:42]} 16. Raxd1 {[%clk 0:02:27]}  Bxg4 {[%clk 0:01:43]} 17. Bxg4 {[%clk 0:02:24]}  Nxg4 {[%clk 0:01:44]} 18. Nd5 {[%clk 0:02:25]}  e6 {[%clk 0:01:37]} 19. Ne7+ {[%clk 0:02:16]}  Kg7 {[%clk 0:01:37]} 20. Rxd6 {[%clk 0:02:17]}  Rfd8 {[%clk 0:01:29]} 21. Rfd1 {[%clk 0:01:59]}  Nf2+ {[%clk 0:01:29]} 0-1


[Site "https://www.chess.com"]

[Event "Titled Tuesday Blitz August 08 Early 2023"]
[White "Zhigalko, Sergei"]
[Black "Matinian, Nikita"]
[WhiteFideId "13502956"]
[BlackFideId "24129100"]
[WhiteElo "2911"]
[BlackElo "2676"]
[Result "1-0"]
[Round "6"]
[TimeControl "180+1"]
[Date "2023.08.08"]
[WhiteClock "0:00:04"]
[BlackClock "0:00:00"]
[Board "39"]

1. e4 {[%clk 0:03:00]}  c5 {[%clk 0:02:59]} 2. Nf3 {[%clk 0:02:59]}  e6 {[%clk 0:02:55]} 3. c3 {[%clk 0:03:00]}  d5 {[%clk 0:02:53]} 4. e5 {[%clk 0:03:00]}  Ne7 {[%clk 0:02:45]} 5. d4 {[%clk 0:03:01]}  Nf5 {[%clk 0:02:45]} 6. Bd3 {[%clk 0:02:59]}  Nc6 {[%clk 0:02:44]} 7. O-O {[%clk 0:02:59]}  Be7 {[%clk 0:02:42]} 8. dxc5 {[%clk 0:02:58]}  Bxc5 {[%clk 0:02:41]} 9. Nbd2 {[%clk 0:02:51]}  a5 {[%clk 0:02:41]} 10. a4 {[%clk 0:02:46]}  b6 {[%clk 0:02:38]} 11. Re1 {[%clk 0:02:43]}  Ba6 {[%clk 0:02:35]} 12. Bxf5 {[%clk 0:02:23]}  exf5 {[%clk 0:02:35]} 13. Nb3 {[%clk 0:02:24]}  O-O {[%clk 0:02:10]} 14. Be3 {[%clk 0:02:24]}  Bxe3 {[%clk 0:01:52]} 15. Rxe3 {[%clk 0:02:25]}  f4 {[%clk 0:01:53]} 16. Re1 {[%clk 0:02:21]}  Re8 {[%clk 0:01:53]} 17. Nbd4 {[%clk 0:02:15]}  Rc8 {[%clk 0:01:49]} 18. h3 {[%clk 0:01:50]}  h6 {[%clk 0:01:36]} 19. Nf5 {[%clk 0:01:38]}  Re6 {[%clk 0:01:12]} 20. Qd2 {[%clk 0:01:19]}  g5 {[%clk 0:00:57]} 21. Rad1 {[%clk 0:01:13]}  Ne7 {[%clk 0:00:46]} 22. Nd6 {[%clk 0:01:02]}  Rc5 {[%clk 0:00:42]} 23. Nd4 {[%clk 0:01:01]}  Rg6 {[%clk 0:00:41]} 24. b4 {[%clk 0:00:54]}  Rc7 {[%clk 0:00:39]} 25. bxa5 {[%clk 0:00:36]}  bxa5 {[%clk 0:00:39]} 26. Rb1 {[%clk 0:00:37]}  Kg7 {[%clk 0:00:16]} 27. Rb6 {[%clk 0:00:31]}  Bc8 {[%clk 0:00:13]} 28. Rb8 {[%clk 0:00:26]}  Qd7 {[%clk 0:00:13]} 29. N4b5 {[%clk 0:00:19]}  Rc6 {[%clk 0:00:09]} 30. Qd4 {[%clk 0:00:13]}  Re6 {[%clk 0:00:09]} 31. Ra8 {[%clk 0:00:06]}  Ra6 {[%clk 0:00:08]} 32. Rb8 {[%clk 0:00:04]}  Rc6 {[%clk 0:00:08]} 33. Rd1 {[%clk 0:00:04]}  h5 {[%clk 0:00:07]} 34. Ra8 {[%clk 0:00:03]}  Ra6 {[%clk 0:00:07]} 35. Rb8 {[%clk 0:00:03]}  Rc6 {[%clk 0:00:07]} 36. h4 {[%clk 0:00:03]}  gxh4 {[%clk 0:00:05]} 37. Qxf4 {[%clk 0:00:03]}  Ng6 {[%clk 0:00:03]} 38. Nf5+ {[%clk 0:00:04]}  Kg8 {[%clk 0:00:00]} 39. Qh6 {[%clk 0:00:04]} 1-0


[Site "https://www.chess.com"]

[Event "Titled Tuesday Blitz August 08 Early 2023"]
[White "Nagare Kaivalya Sandip"]
[Black "Muradli, Mahammad"]
[WhiteFideId "25957929"]
[BlackFideId "13409301"]
[WhiteElo "2664"]
[BlackElo "2909"]
[Result "1-0"]
[Round "6"]
[TimeControl "180+1"]
[Date "2023.08.08"]
[WhiteClock "0:01:21"]
[BlackClock "0:00:00"]
[Board "40"]

1. e4 {[%clk 0:03:00]}  d6 {[%clk 0:02:56]} 2. d4 {[%clk 0:03:00]}  e5 {[%clk 0:02:56]} 3. Nf3 {[%clk 0:02:59]}  exd4 {[%clk 0:02:57]} 4. Qxd4 {[%clk 0:02:57]}  a6 {[%clk 0:02:56]} 5. Nc3 {[%clk 0:02:53]}  Nc6 {[%clk 0:02:56]} 6. Qd1 {[%clk 0:02:53]}  Nf6 {[%clk 0:02:55]} 7. Bc4 {[%clk 0:02:53]}  Be7 {[%clk 0:02:53]} 8. h3 {[%clk 0:02:53]}  O-O {[%clk 0:02:53]} 9. O-O {[%clk 0:02:53]}  b5 {[%clk 0:02:54]} 10. Bb3 {[%clk 0:02:53]}  Bb7 {[%clk 0:02:53]} 11. a4 {[%clk 0:02:51]}  b4 {[%clk 0:02:45]} 12. Nd5 {[%clk 0:02:51]}  Na5 {[%clk 0:02:43]} 13. Ba2 {[%clk 0:02:48]}  c5 {[%clk 0:02:13]} 14. Re1 {[%clk 0:02:45]}  Nxd5 {[%clk 0:01:34]} 15. Bxd5 {[%clk 0:02:41]}  Qc8 {[%clk 0:01:31]} 16. Bf4 {[%clk 0:02:28]}  Rd8 {[%clk 0:01:21]} 17. Bg5 {[%clk 0:02:10]}  Qc7 {[%clk 0:01:08]} 18. Qd2 {[%clk 0:02:00]}  Re8 {[%clk 0:00:55]} 19. Rad1 {[%clk 0:01:59]}  Rad8 {[%clk 0:00:51]} 20. Nh4 {[%clk 0:01:58]}  Bxd5 {[%clk 0:00:39]} 21. exd5 {[%clk 0:01:56]}  Nc4 {[%clk 0:00:34]} 22. Qf4 {[%clk 0:01:56]}  Bxg5 {[%clk 0:00:28]} 23. Qxg5 {[%clk 0:01:53]}  Nxb2 {[%clk 0:00:23]} 24. Rb1 {[%clk 0:01:50]}  Nxa4 {[%clk 0:00:18]} 25. Nf5 {[%clk 0:01:48]}  f6 {[%clk 0:00:18]} 26. Qg3 {[%clk 0:01:47]}  Nc3 {[%clk 0:00:14]} 27. Ra1 {[%clk 0:01:44]}  Re5 {[%clk 0:00:06]} 28. Rxe5 {[%clk 0:01:41]}  dxe5 {[%clk 0:00:07]} 29. d6 {[%clk 0:01:39]}  Rxd6 {[%clk 0:00:07]} 30. Qf3 {[%clk 0:01:32]}  e4 {[%clk 0:00:03]} 31. Qe3 {[%clk 0:01:29]}  Rd8 {[%clk 0:00:03]} 32. g4 {[%clk 0:01:27]}  g6 {[%clk 0:00:03]} 33. Ng3 {[%clk 0:01:27]}  Qe5 {[%clk 0:00:02]} 34. Rxa6 {[%clk 0:01:27]}  Rd7 {[%clk 0:00:02]} 35. Ra8+ {[%clk 0:01:27]}  Kg7 {[%clk 0:00:02]} 36. h4 {[%clk 0:01:26]}  c4 {[%clk 0:00:01]} 37. h5 {[%clk 0:01:26]}  g5 {[%clk 0:00:01]} 38. Nf5+ {[%clk 0:01:26]}  Kf7 {[%clk 0:00:02]} 39. Rh8 {[%clk 0:01:25]}  Ke6 {[%clk 0:00:01]} 40. Re8+ {[%clk 0:01:25]}  Kd5 {[%clk 0:00:01]} 41. Rxe5+ {[%clk 0:01:26]}  Kxe5 {[%clk 0:00:02]} 42. Kg2 {[%clk 0:01:22]}  Nd5 {[%clk 0:00:01]} 43. Qc5 {[%clk 0:01:21]}  Ke6 {[%clk 0:00:00]} 44. Qxc4 {[%clk 0:01:21]} 1-0


[Site "https://www.chess.com"]

[Event "Titled Tuesday Blitz August 08 Early 2023"]
[White "Zemlyanskii, Ivan"]
[Black "Petrosian, Karlen"]
[WhiteFideId "24249971"]
[BlackFideId "4176146"]
[WhiteElo "2905"]
[BlackElo "2670"]
[Result "1-0"]
[Round "6"]
[TimeControl "180+1"]
[Date "2023.08.08"]
[WhiteClock "0:00:26"]
[BlackClock "0:00:03"]
[Board "41"]

1. d4 {[%clk 0:03:00]}  Nf6 {[%clk 0:02:57]} 2. c4 {[%clk 0:03:01]}  d6 {[%clk 0:02:57]} 3. Nf3 {[%clk 0:02:58]}  g6 {[%clk 0:02:56]} 4. Nc3 {[%clk 0:02:58]}  Bf5 {[%clk 0:02:57]} 5. h3 {[%clk 0:02:57]}  Bg7 {[%clk 0:02:56]} 6. g4 {[%clk 0:02:53]}  Bd7 {[%clk 0:02:56]} 7. Bg2 {[%clk 0:02:53]}  O-O {[%clk 0:02:56]} 8. O-O {[%clk 0:02:53]}  Nc6 {[%clk 0:02:45]} 9. Bf4 {[%clk 0:02:34]}  Rb8 {[%clk 0:02:30]} 10. Rc1 {[%clk 0:02:24]}  a6 {[%clk 0:01:43]} 11. e4 {[%clk 0:01:53]}  b5 {[%clk 0:01:27]} 12. e5 {[%clk 0:01:48]}  Ne8 {[%clk 0:01:27]} 13. b3 {[%clk 0:01:26]}  bxc4 {[%clk 0:01:26]} 14. bxc4 {[%clk 0:01:27]}  Na5 {[%clk 0:01:23]} 15. Qe2 {[%clk 0:01:27]}  Rb4 {[%clk 0:01:12]} 16. Nd5 {[%clk 0:01:14]}  Rb8 {[%clk 0:00:57]} 17. Rfe1 {[%clk 0:01:11]}  e6 {[%clk 0:00:56]} 18. Ne3 {[%clk 0:01:09]}  Bc6 {[%clk 0:00:47]} 19. d5 {[%clk 0:01:05]}  exd5 {[%clk 0:00:45]} 20. cxd5 {[%clk 0:01:05]}  Bb5 {[%clk 0:00:44]} 21. Qd2 {[%clk 0:01:04]}  dxe5 {[%clk 0:00:38]} 22. Nxe5 {[%clk 0:00:59]}  Nb7 {[%clk 0:00:37]} 23. Nc6 {[%clk 0:00:53]}  Bxc6 {[%clk 0:00:36]} 24. Rxc6 {[%clk 0:00:54]}  a5 {[%clk 0:00:34]} 25. Nc4 {[%clk 0:00:52]}  a4 {[%clk 0:00:30]} 26. Qb4 {[%clk 0:00:46]}  Nbd6 {[%clk 0:00:27]} 27. Qxa4 {[%clk 0:00:45]}  Nxc4 {[%clk 0:00:24]} 28. Qxc4 {[%clk 0:00:46]}  Nd6 {[%clk 0:00:24]} 29. Qc1 {[%clk 0:00:41]}  Rb2 {[%clk 0:00:19]} 30. Rxc7 {[%clk 0:00:38]}  Rxa2 {[%clk 0:00:19]} 31. Qc6 {[%clk 0:00:31]}  Ne8 {[%clk 0:00:18]} 32. Rc8 {[%clk 0:00:29]}  Qf6 {[%clk 0:00:16]} 33. Bg3 {[%clk 0:00:26]}  Qxc6 {[%clk 0:00:10]} 34. dxc6 {[%clk 0:00:27]}  Nf6 {[%clk 0:00:10]} 35. Rxf8+ {[%clk 0:00:27]}  Bxf8 {[%clk 0:00:11]} 36. c7 {[%clk 0:00:27]}  Rc2 {[%clk 0:00:11]} 37. Bb7 {[%clk 0:00:27]}  Bb4 {[%clk 0:00:03]} 38. Rd1 {[%clk 0:00:26]} 1-0


[Site "https://www.chess.com"]

[Event "Titled Tuesday Blitz August 08 Early 2023"]
[White "Salinas Herrera, Pablo"]
[Black "Zarnicki, Pablo"]
[WhiteFideId "3407128"]
[BlackFideId "100137"]
[WhiteElo "2828"]
[BlackElo "2621"]
[Result "1-0"]
[Round "6"]
[TimeControl "180+1"]
[Date "2023.08.08"]
[WhiteClock "0:02:11"]
[BlackClock "0:00:56"]
[Board "48"]

1. d4 {[%clk 0:03:00]}  Nf6 {[%clk 0:02:58]} 2. Bf4 {[%clk 0:03:01]}  d5 {[%clk 0:02:55]} 3. e3 {[%clk 0:03:01]}  e6 {[%clk 0:02:54]} 4. Nf3 {[%clk 0:03:02]}  Bd6 {[%clk 0:02:53]} 5. Nbd2 {[%clk 0:03:03]}  O-O {[%clk 0:02:50]} 6. Bd3 {[%clk 0:03:02]}  c5 {[%clk 0:02:50]} 7. c3 {[%clk 0:03:02]}  Nc6 {[%clk 0:02:50]} 8. Bg3 {[%clk 0:03:02]}  Qc7 {[%clk 0:02:48]} 9. dxc5 {[%clk 0:03:01]}  Bxg3 {[%clk 0:02:44]} 10. hxg3 {[%clk 0:03:02]}  e5 {[%clk 0:02:37]} 11. e4 {[%clk 0:03:02]}  h6 {[%clk 0:02:34]} 12. Qe2 {[%clk 0:03:02]}  Bg4 {[%clk 0:02:33]} 13. exd5 {[%clk 0:02:56]}  Nxd5 {[%clk 0:02:32]} 14. O-O {[%clk 0:02:53]}  Rfe8 {[%clk 0:02:24]} 15. Rfe1 {[%clk 0:02:53]}  Rad8 {[%clk 0:02:22]} 16. Ne4 {[%clk 0:02:47]}  Re7 {[%clk 0:02:08]} 17. Bc4 {[%clk 0:02:45]}  Na5 {[%clk 0:01:57]} 18. Bxd5 {[%clk 0:02:35]}  Rxd5 {[%clk 0:01:56]} 19. b4 {[%clk 0:02:35]}  Nc6 {[%clk 0:01:53]} 20. Nd6 {[%clk 0:02:34]}  b6 {[%clk 0:01:28]} 21. Qe4 {[%clk 0:02:33]}  Be6 {[%clk 0:01:23]} 22. Nf5 {[%clk 0:02:30]}  Bxf5 {[%clk 0:01:18]} 23. Qxd5 {[%clk 0:02:30]}  Rd7 {[%clk 0:01:12]} 24. Qc4 {[%clk 0:02:29]}  e4 {[%clk 0:01:11]} 25. cxb6 {[%clk 0:02:21]}  axb6 {[%clk 0:01:10]} 26. Nd4 {[%clk 0:02:13]}  Nxd4 {[%clk 0:01:10]} 27. Qxc7 {[%clk 0:02:13]}  Rxc7 {[%clk 0:01:09]} 28. cxd4 {[%clk 0:02:14]}  Rc4 {[%clk 0:01:10]} 29. a3 {[%clk 0:02:10]}  Rxd4 {[%clk 0:01:00]} 30. Red1 {[%clk 0:02:10]}  Rd3 {[%clk 0:00:59]} 31. Rxd3 {[%clk 0:02:10]}  exd3 {[%clk 0:01:00]} 32. Kf1 {[%clk 0:02:10]}  Kf8 {[%clk 0:01:00]} 33. Ke1 {[%clk 0:02:11]}  Ke7 {[%clk 0:01:01]} 34. Kd2 {[%clk 0:02:11]}  Kd6 {[%clk 0:01:02]} 35. Rc1 {[%clk 0:02:11]}  Be4 {[%clk 0:00:59]} 36. f3 {[%clk 0:02:11]}  Bg6 {[%clk 0:00:56]} 37. a4 {[%clk 0:02:11]} 1-0


[Site "https://www.chess.com"]

[Event "Titled Tuesday Blitz August 08 Early 2023"]
[White "Mikhailovsky, Vladimir"]
[Black "Vaibhav Jayant Raut"]
[WhiteFideId "34105414"]
[BlackFideId "5089034"]
[WhiteElo "2810"]
[BlackElo "2615"]
[Result "0-1"]
[Round "6"]
[TimeControl "180+1"]
[Date "2023.08.08"]
[WhiteClock "0:00:02"]
[BlackClock "0:00:29"]
[Board "50"]

1. e4 {[%clk 0:03:00]}  c5 {[%clk 0:02:55]} 2. Nf3 {[%clk 0:03:00]}  Nc6 {[%clk 0:02:55]} 3. Bc4 {[%clk 0:02:54]}  e6 {[%clk 0:02:54]} 4. O-O {[%clk 0:02:55]}  Nge7 {[%clk 0:02:53]} 5. Re1 {[%clk 0:02:54]}  g6 {[%clk 0:02:51]} 6. e5 {[%clk 0:02:48]}  Bg7 {[%clk 0:02:49]} 7. Nc3 {[%clk 0:02:46]}  O-O {[%clk 0:02:48]} 8. a3 {[%clk 0:02:43]}  a6 {[%clk 0:02:46]} 9. d3 {[%clk 0:02:29]}  b5 {[%clk 0:02:43]} 10. Ba2 {[%clk 0:02:28]}  Bb7 {[%clk 0:02:41]} 11. Bf4 {[%clk 0:02:28]}  Nd4 {[%clk 0:02:34]} 12. Nxd4 {[%clk 0:02:24]}  cxd4 {[%clk 0:02:35]} 13. Ne4 {[%clk 0:02:25]}  Qc7 {[%clk 0:02:15]} 14. Qd2 {[%clk 0:02:20]}  Bxe4 {[%clk 0:02:00]} 15. Rxe4 {[%clk 0:02:19]}  Rac8 {[%clk 0:02:01]} 16. Rc1 {[%clk 0:01:50]}  Qc5 {[%clk 0:02:01]} 17. h4 {[%clk 0:01:37]}  h5 {[%clk 0:01:47]} 18. Bh6 {[%clk 0:00:53]}  Nf5 {[%clk 0:01:44]} 19. Bxg7 {[%clk 0:00:52]}  Kxg7 {[%clk 0:01:45]} 20. Qf4 {[%clk 0:00:49]}  Qe7 {[%clk 0:01:42]} 21. Bb3 {[%clk 0:00:43]}  Rc5 {[%clk 0:01:37]} 22. g3 {[%clk 0:00:39]}  Rfc8 {[%clk 0:01:35]} 23. Rce1 {[%clk 0:00:37]}  a5 {[%clk 0:01:33]} 24. a4 {[%clk 0:00:37]}  bxa4 {[%clk 0:01:33]} 25. Bxa4 {[%clk 0:00:38]}  Rb8 {[%clk 0:01:31]} 26. Qc1 {[%clk 0:00:15]}  Rb4 {[%clk 0:01:27]} 27. b3 {[%clk 0:00:15]}  Rb8 {[%clk 0:01:24]} 28. R1e2 {[%clk 0:00:15]}  Rbc8 {[%clk 0:01:24]} 29. Qe1 {[%clk 0:00:13]}  Qd8 {[%clk 0:01:17]} 30. Qd1 {[%clk 0:00:10]}  Qc7 {[%clk 0:01:16]} 31. Qe1 {[%clk 0:00:09]}  Rxc2 {[%clk 0:01:11]} 32. Rxc2 {[%clk 0:00:09]}  Qxc2 {[%clk 0:01:12]} 33. Bxd7 {[%clk 0:00:07]}  Rc5 {[%clk 0:01:09]} 34. b4 {[%clk 0:00:05]}  axb4 {[%clk 0:01:03]} 35. Qxb4 {[%clk 0:00:06]}  Qxd3 {[%clk 0:00:53]} 36. Qxc5 {[%clk 0:00:03]}  Qxe4 {[%clk 0:00:54]} 37. Bc6 {[%clk 0:00:02]}  Qe1+ {[%clk 0:00:51]} 38. Kg2 {[%clk 0:00:03]}  d3 {[%clk 0:00:42]} 39. Ba4 {[%clk 0:00:02]}  d2 {[%clk 0:00:41]} 40. Qc2 {[%clk 0:00:01]}  Qe2 {[%clk 0:00:36]} 41. Kg1 {[%clk 0:00:01]}  Nd4 {[%clk 0:00:34]} 42. Qd1 {[%clk 0:00:02]}  Qe1+ {[%clk 0:00:32]} 43. Kg2 {[%clk 0:00:02]}  Qe4+ {[%clk 0:00:33]} 44. Kg1 {[%clk 0:00:02]}  Ne2+ {[%clk 0:00:33]} 45. Kf1 {[%clk 0:00:02]}  Nc3 {[%clk 0:00:29]} 46. Qxd2 {[%clk 0:00:02]}  Qh1# {[%clk 0:00:29]} 0-1


[Site "https://www.chess.com"]

[Event "Titled Tuesday Blitz August 08 Early 2023"]
[White "Malek, Jan"]
[Black "Lysyj, Igor"]
[WhiteFideId "21864080"]
[BlackFideId "4150120"]
[WhiteElo "2606"]
[BlackElo "2807"]
[Result "1-0"]
[Round "6"]
[TimeControl "180+1"]
[Date "2023.08.08"]
[WhiteClock "0:00:05"]
[BlackClock "0:00:00"]
[Board "51"]

1. d4 {[%clk 0:03:00]}  d5 {[%clk 0:02:59]} 2. Nf3 {[%clk 0:03:00]}  Nf6 {[%clk 0:02:58]} 3. Bg5 {[%clk 0:03:01]}  Ne4 {[%clk 0:02:55]} 4. Bf4 {[%clk 0:03:01]}  Bf5 {[%clk 0:02:53]} 5. e3 {[%clk 0:02:59]}  e6 {[%clk 0:02:53]} 6. Nbd2 {[%clk 0:02:59]}  Bd6 {[%clk 0:02:52]} 7. Bxd6 {[%clk 0:02:51]}  cxd6 {[%clk 0:02:52]} 8. Bd3 {[%clk 0:02:50]}  O-O {[%clk 0:02:51]} 9. O-O {[%clk 0:02:49]}  Nd7 {[%clk 0:02:51]} 10. Qe2 {[%clk 0:02:47]}  Qb6 {[%clk 0:02:44]} 11. Rab1 {[%clk 0:02:42]}  Ndf6 {[%clk 0:02:36]} 12. h3 {[%clk 0:02:41]}  h6 {[%clk 0:02:36]} 13. c4 {[%clk 0:02:36]}  Rfc8 {[%clk 0:02:30]} 14. Rfc1 {[%clk 0:02:35]}  dxc4 {[%clk 0:02:23]} 15. Nxc4 {[%clk 0:02:35]}  Qd8 {[%clk 0:02:23]} 16. Nfd2 {[%clk 0:02:25]}  Rc6 {[%clk 0:01:45]} 17. Nxe4 {[%clk 0:02:19]}  Nxe4 {[%clk 0:01:44]} 18. Rc2 {[%clk 0:02:10]}  Rac8 {[%clk 0:01:42]} 19. Rbc1 {[%clk 0:02:10]}  Bg6 {[%clk 0:01:07]} 20. a3 {[%clk 0:01:49]}  a6 {[%clk 0:01:05]} 21. Nd2 {[%clk 0:01:34]}  Ng3 {[%clk 0:00:54]} 22. fxg3 {[%clk 0:00:55]}  Rxc2 {[%clk 0:00:54]} 23. Rxc2 {[%clk 0:00:55]}  Rxc2 {[%clk 0:00:54]} 24. Bxc2 {[%clk 0:00:53]}  Bxc2 {[%clk 0:00:53]} 25. Qc4 {[%clk 0:00:52]}  Bg6 {[%clk 0:00:49]} 26. Kf2 {[%clk 0:00:47]}  Qf6+ {[%clk 0:00:41]} 27. Nf3 {[%clk 0:00:47]}  Be4 {[%clk 0:00:41]} 28. Qc8+ {[%clk 0:00:45]}  Kh7 {[%clk 0:00:40]} 29. Qc7 {[%clk 0:00:43]}  Qf5 {[%clk 0:00:33]} 30. g4 {[%clk 0:00:34]}  Qb5 {[%clk 0:00:32]} 31. b4 {[%clk 0:00:13]}  Bg6 {[%clk 0:00:17]} 32. Qxd6 {[%clk 0:00:12]}  Qd3 {[%clk 0:00:17]} 33. Qc7 {[%clk 0:00:08]}  b5 {[%clk 0:00:13]} 34. Qa5 {[%clk 0:00:04]}  Be4 {[%clk 0:00:08]} 35. Qxa6 {[%clk 0:00:04]}  Bxf3 {[%clk 0:00:08]} 36. gxf3 {[%clk 0:00:03]}  Qd2+ {[%clk 0:00:08]} 37. Kg3 {[%clk 0:00:03]}  Qxe3 {[%clk 0:00:06]} 38. Qxb5 {[%clk 0:00:02]}  Qg1+ {[%clk 0:00:06]} 39. Kf4 {[%clk 0:00:02]}  Qxd4+ {[%clk 0:00:06]} 40. Kg3 {[%clk 0:00:02]}  Qg1+ {[%clk 0:00:06]} 41. Kf4 {[%clk 0:00:03]}  g5+ {[%clk 0:00:06]} 42. Ke4 {[%clk 0:00:03]}  Qe1+ {[%clk 0:00:05]} 43. Kd4 {[%clk 0:00:02]}  Qa1+ {[%clk 0:00:04]} 44. Ke4 {[%clk 0:00:02]}  Qxa3 {[%clk 0:00:04]} 45. Qc4 {[%clk 0:00:02]}  Qb2 {[%clk 0:00:04]} 46. b5 {[%clk 0:00:02]}  Qb1+ {[%clk 0:00:02]} 47. Qd3 {[%clk 0:00:03]}  Qb4+ {[%clk 0:00:02]} 48. Ke5+ {[%clk 0:00:03]}  Kg7 {[%clk 0:00:02]} 49. Qd7 {[%clk 0:00:02]}  Qc3+ {[%clk 0:00:02]} 50. Kd6 {[%clk 0:00:02]}  Qxf3 {[%clk 0:00:02]} 51. b6 {[%clk 0:00:03]}  Qe3 {[%clk 0:00:02]} 52. Kc7 {[%clk 0:00:03]}  Qc5+ {[%clk 0:00:02]} 53. Qc6 {[%clk 0:00:04]}  Qe5+ {[%clk 0:00:02]} 54. Qd6 {[%clk 0:00:05]}  Qc3+ {[%clk 0:00:02]} 55. Kd8 {[%clk 0:00:05]}  Qb3 {[%clk 0:00:02]} 56. Kc8 {[%clk 0:00:05]}  e5 {[%clk 0:00:02]} 57. b7 {[%clk 0:00:04]}  Qc4+ {[%clk 0:00:01]} 58. Kd8 {[%clk 0:00:04]}  Qb3 {[%clk 0:00:00]} 59. b8=Q {[%clk 0:00:05]} 1-0


[Site "https://www.chess.com"]

[Event "Titled Tuesday Blitz August 08 Early 2023"]
[White "Sychev, Klementy"]
[Black "ArtemDyachuk"]
[WhiteFideId "4114060"]
[WhiteElo "2767"]
[BlackElo "2548"]
[Result "1-0"]
[Round "6"]
[TimeControl "180+1"]
[Date "2023.08.08"]
[WhiteClock "0:00:08"]
[BlackClock "0:00:00"]
[Board "55"]

1. e4 {[%clk 0:03:00]}  c5 {[%clk 0:02:55]} 2. Nf3 {[%clk 0:03:00]}  d6 {[%clk 0:02:55]} 3. d4 {[%clk 0:03:01]}  cxd4 {[%clk 0:02:55]} 4. Nxd4 {[%clk 0:03:02]}  Nf6 {[%clk 0:02:53]} 5. Nc3 {[%clk 0:03:02]}  Nc6 {[%clk 0:02:53]} 6. Bg5 {[%clk 0:02:53]}  e6 {[%clk 0:02:52]} 7. Bb5 {[%clk 0:02:54]}  Bd7 {[%clk 0:02:48]} 8. Qd3 {[%clk 0:02:53]}  Be7 {[%clk 0:02:37]} 9. O-O-O {[%clk 0:02:52]}  Rc8 {[%clk 0:02:30]} 10. Bxc6 {[%clk 0:02:50]}  bxc6 {[%clk 0:02:09]} 11. Nb3 {[%clk 0:02:49]}  d5 {[%clk 0:02:03]} 12. e5 {[%clk 0:02:47]}  Ng8 {[%clk 0:02:01]} 13. Bxe7 {[%clk 0:02:43]}  Nxe7 {[%clk 0:02:02]} 14. Nc5 {[%clk 0:02:40]}  Ng6 {[%clk 0:01:56]} 15. Qe3 {[%clk 0:02:38]}  O-O {[%clk 0:01:51]} 16. h4 {[%clk 0:02:26]}  Rb8 {[%clk 0:01:39]} 17. h5 {[%clk 0:02:24]}  Ne7 {[%clk 0:01:39]} 18. g4 {[%clk 0:01:50]}  Rb4 {[%clk 0:01:39]} 19. f3 {[%clk 0:01:40]}  Bc8 {[%clk 0:01:04]} 20. h6 {[%clk 0:01:31]}  g5 {[%clk 0:00:39]} 21. Qxg5+ {[%clk 0:00:48]}  Ng6 {[%clk 0:00:39]} 22. Qd2 {[%clk 0:00:34]}  Rb8 {[%clk 0:00:21]} 23. N5e4 {[%clk 0:00:31]}  Qb6 {[%clk 0:00:16]} 24. Nf6+ {[%clk 0:00:28]}  Kh8 {[%clk 0:00:17]} 25. b3 {[%clk 0:00:29]}  Qc5 {[%clk 0:00:13]} 26. Kb1 {[%clk 0:00:26]}  Ba6 {[%clk 0:00:11]} 27. Nd7 {[%clk 0:00:20]}  Qb4 {[%clk 0:00:08]} 28. Qg5 {[%clk 0:00:19]}  f6 {[%clk 0:00:06]} 29. Qe3 {[%clk 0:00:12]}  fxe5 {[%clk 0:00:04]} 30. Nxe5 {[%clk 0:00:12]}  Kg8 {[%clk 0:00:02]} 31. Nxg6 {[%clk 0:00:10]}  hxg6 {[%clk 0:00:03]} 32. Qxe6+ {[%clk 0:00:08]}  Kh7 {[%clk 0:00:00]} 33. Qd7+ {[%clk 0:00:08]} 1-0


[Site "https://www.chess.com"]